Workbook

Sheet 20. Bill Impacts
AZ1: YES | CA1: 1
D12: The bill comparisons below must be provided for typical customers and consumption levels. Bill impacts must be provided for residential customers consuming 750 kWh per month and general service customers consuming 2,000 kWh per month and having a monthly demand of less than 50 kW. Include bill comparisons for Non-RPP (retailer) as well. To assess the combined effects of the shift to fixed rates and other bill impacts associated with changes in the cost of distribution service, applicants are to include a total bill impact for a residential customer at the distributor’s 10th consumption percentile (In other words, 10% of a distributor’s residential customers consume at or less than this level of consumption on a monthly basis). Refer to section 3.2.3 of the Chapter 3 Filing Requirements For Electricity Distribution Rate Applications. For certain classes where one or more customers have unique consumption and demand patterns and which may be significantly impacted by the proposed rate changes, the distributor must show a typical comparison, and provide an explanation. Note: 1. For those classes that are not eligible for the RPP price, the weighted average price including Class B GA through end of May 2018 of $0.1117/kWh (IESO's Monthly Market Report for May 2018, page 22) has been used to represent the cost of power. For those classes on a retailer contract, applicants should enter the contract price (plus GA) for a more accurate estimate. Changes to the cost of power can be made directly on the bill impact table for the specific class. 2. Please enter the applicable billing determinant (e.g. number of connections or devices) to be applied to the monthly service charge for unmetered rate classes in column N. If the monthly service charge is applied on a per customer basis, enter the number “1”. Distributors should provide the number of connections or devices reflective of a typical customer in each class.
D13: Note that cells with the highlighted color shown to the left indicate quantities that are loss adjusted.
D28: Table 1
D29: RATE CLASSES / CATEGORIES (eg: Residential TOU, Residential Retailer) | G29: Units | H29: RPP? Non-RPP Retailer? Non-RPP Other? | I29: Current Loss Factor (eg: 1.0351) | J29: Proposed Loss Factor | K29: Consumption (kWh) | L29: Demand kW (if applicable) | M29: RTSR Demand or Demand-Interval? | N29: Billing Determinant Applied to Fixed Charge for Unmetered Classes (e.g. # of devices/connections).
B30: 1 | C30: 1 | D30: RESIDENTIAL SERVICE CLASSIFICATION | G30: =IF(ISERROR(VLOOKUP(D30, '[2]4. Billing Det. for Def-Var'!$A$16:$B$50, 2, FALSE)),"", VLOOKUP(D30,'[2]4. Billing Det. for Def-Var'!$A$16:$B$50, 2, FALSE)) -> kWh | H30: RPP | I30: 1.0315 | J30: =IF(ISBLANK(I30),"", I30) -> 1.0315 | K30: 750 | T30: =SUM(I30:L30) -> 752.063 | U30: 78 | AS30: 1
B31: 2 | C31: 2 | D31: GENERAL SERVICE LESS THAN 50 KW SERVICE CLASSIFICATION | G31: =IF(ISERROR(VLOOKUP(D31, '[2]4. Billing Det. for Def-Var'!$A$16:$B$50, 2, FALSE)),"", VLOOKUP(D31,'[2]4. Billing Det. for Def-Var'!$A$16:$B$50, 2, FALSE)) -> kWh | H31: RPP | I31: 1.0315 | J31: 1.0315 | K31: 2000 | T31: 2002.063 | U31: =U30+68 -> 146 | AS31: 2
B32: 3 | C32: 3 | D32: GENERAL SERVICE 50 to 4,999 kW SERVICE CLASSIFICATION | G32: =IF(ISERROR(VLOOKUP(D32, '[2]4. Billing Det. for Def-Var'!$A$16:$B$50, 2, FALSE)),"", VLOOKUP(D32,'[2]4. Billing Det. for Def-Var'!$A$16:$B$50, 2, FALSE)) -> kW | H32: Non-RPP (Other) | I32: 1.0315 | J32: 1.0315 | K32: 1095000 | L32: 2500 | M32: DEMAND - INTERVAL | T32: 1097502.063 | U32: =U31+68 -> 214 | AS32: 3
B33: 4 | C33: 4 | D33: GENERAL SERVICE 1,000 TO 4,999 KW (CO-GENERATION) SERVICE CLASSIFICATION | G33: =IF(ISERROR(VLOOKUP(D33, '[2]4. Billing Det. for Def-Var'!$A$16:$B$50, 2, FALSE)),"", VLOOKUP(D33,'[2]4. Billing Det. for Def-Var'!$A$16:$B$50, 2, FALSE)) -> kW | H33: Non-RPP (Other) | I33: 1.0315 | J33: 1.0315 | K33: 1095000 | L33: 2500 | M33: DEMAND | T33: 1097502.063 | U33: 282 | AS33: 4
B34: 5 | C34: 5 | D34: STANDBY POWER SERVICE CLASSIFICATION | G34: =IF(ISERROR(VLOOKUP(D34, '[2]4. Billing Det. for Def-Var'!$A$16:$B$50, 2, FALSE)),"", VLOOKUP(D34,'[2]4. Billing Det. for Def-Var'!$A$16:$B$50, 2, FALSE)) -> kW | H34: Non-RPP (Other) | I34: 1.0315 | J34: 1.0315 | L34: 3500 | M34: DEMAND | T34: 3502.063 | U34: 350 | AS34: 5
B35: 6 | C35: 6 | D35: LARGE USE SERVICE CLASSIFICATION | G35: =IF(ISERROR(VLOOKUP(D35, '[2]4. Billing Det. for Def-Var'!$A$16:$B$50, 2, FALSE)),"", VLOOKUP(D35,'[2]4. Billing Det. for Def-Var'!$A$16:$B$50, 2, FALSE)) -> kW | H35: Non-RPP (Other) | I35: 1.0315 | J35: 1.0315 | K35: 5600000 | L35: 10700 | M35: DEMAND | T35: 5610702.063 | U35: 418 | AS35: 6
B36: 7 | C36: 7 | D36: STREET LIGHTING SERVICE CLASSIFICATION | G36: =IF(ISERROR(VLOOKUP(D36, '[2]4. Billing Det. for Def-Var'!$A$16:$B$50, 2, FALSE)),"", VLOOKUP(D36,'[2]4. Billing Det. for Def-Var'!$A$16:$B$50, 2, FALSE)) -> kW | H36: Non-RPP (Other) | I36: 1.0315 | J36: 1.0315 | K36: 256 | L36: 0.5 | M36: DEMAND | T36: 258.563 | U36: 486 | AS36: 7
B37: 8 | C37: 8 | D37: SENTINEL LIGHTING SERVICE CLASSIFICATION | G37: =IF(ISERROR(VLOOKUP(D37, '[2]4. Billing Det. for Def-Var'!$A$16:$B$50, 2, FALSE)),"", VLOOKUP(D37,'[2]4. Billing Det. for Def-Var'!$A$16:$B$50, 2, FALSE)) -> kW | H37: Non-RPP (Other) | I37: 1.0315 | J37: 1.0315 | K37: 180 | L37: 0.1 | M37: DEMAND | T37: 182.163 | U37: 554 | AS37: 8
B38: 9 | C38: 9 | D38: UNMETERED SCATTERED LOAD SERVICE CLASSIFICATION | G38: =IF(ISERROR(VLOOKUP(D38, '[2]4. Billing Det. for Def-Var'!$A$16:$B$50, 2, FALSE)),"", VLOOKUP(D38,'[2]4. Billing Det. for Def-Var'!$A$16:$B$50, 2, FALSE)) -> kWh | H38: RPP | I38: 1.0315 | J38: 1.0315 | K38: 2000 | T38: 2002.063 | U38: 622 | AS38: 9
B39: 10 | C39: =IF(ISERROR(VLOOKUP(D39, D30:AS49, 42, FALSE)),"", VLOOKUP(D39, D30:AS49, 42, FALSE)) -> 10 | D39: Add additional scenarios if required | G39: =IF(ISERROR(VLOOKUP(D39, '[2]4. Billing Det. for Def-Var'!$A$16:$B$50, 2, FALSE)),"", VLOOKUP(D39,'[2]4. Billing Det. for Def-Var'!$A$16:$B$50, 2, FALSE)) ->  | I39: 1.0315 | J39: 1.0315 | T39: 2.063 | U39: 690 | AS39: 10
B40: 11 | C40: =IF(ISERROR(VLOOKUP(D40, D30:AS49, 42, FALSE)),"", VLOOKUP(D40, D30:AS49, 42, FALSE)) -> 10 | D40: Add additional scenarios if required | G40: =IF(ISERROR(VLOOKUP(D40, '[2]4. Billing Det. for Def-Var'!$A$16:$B$50, 2, FALSE)),"", VLOOKUP(D40,'[2]4. Billing Det. for Def-Var'!$A$16:$B$50, 2, FALSE)) ->  | I40: 1.0315 | J40: 1.0315 | T40: 2.063 | U40: 758 | AS40: 11
B41: 12 | C41: =IF(ISERROR(VLOOKUP(D41, D30:AS49, 42, FALSE)),"", VLOOKUP(D41, D30:AS49, 42, FALSE)) -> 10 | D41: Add additional scenarios if required | G41: =IF(ISERROR(VLOOKUP(D41, '[2]4. Billing Det. for Def-Var'!$A$16:$B$50, 2, FALSE)),"", VLOOKUP(D41,'[2]4. Billing Det. for Def-Var'!$A$16:$B$50, 2, FALSE)) ->  | I41: 1.0315 | J41: 1.0315 | T41: 2.063 | U41: 826
B42: 13 | C42: =IF(ISERROR(VLOOKUP(D42, D30:AS49, 42, FALSE)),"", VLOOKUP(D42, D30:AS49, 42, FALSE)) -> 10 | D42: Add additional scenarios if required | G42: =IF(ISERROR(VLOOKUP(D42, '[2]4. Billing Det. for Def-Var'!$A$16:$B$50, 2, FALSE)),"", VLOOKUP(D42,'[2]4. Billing Det. for Def-Var'!$A$16:$B$50, 2, FALSE)) ->  | I42: 1.0315 | J42: 1.0315 | T42: 2.063 | U42: 894
B43: 14 | C43: =IF(ISERROR(VLOOKUP(D43, D30:AS49, 42, FALSE)),"", VLOOKUP(D43, D30:AS49, 42, FALSE)) -> 10 | D43: Add additional scenarios if required | G43: =IF(ISERROR(VLOOKUP(D43, '[2]4. Billing Det. for Def-Var'!$A$16:$B$50, 2, FALSE)),"", VLOOKUP(D43,'[2]4. Billing Det. for Def-Var'!$A$16:$B$50, 2, FALSE)) ->  | I43: 1.0315 | J43: 1.0315 | T43: 2.063 | U43: 962
B44: 15 | C44: =IF(ISERROR(VLOOKUP(D44, D30:AS49, 42, FALSE)),"", VLOOKUP(D44, D30:AS49, 42, FALSE)) -> 10 | D44: Add additional scenarios if required | G44: =IF(ISERROR(VLOOKUP(D44, '[2]4. Billing Det. for Def-Var'!$A$16:$B$50, 2, FALSE)),"", VLOOKUP(D44,'[2]4. Billing Det. for Def-Var'!$A$16:$B$50, 2, FALSE)) ->  | I44: 1.0315 | J44: 1.0315 | T44: 2.063 | U44: 1030
B45: 16 | C45: =IF(ISERROR(VLOOKUP(D45, D30:AS49, 42, FALSE)),"", VLOOKUP(D45, D30:AS49, 42, FALSE)) -> 10 | D45: Add additional scenarios if required | G45: =IF(ISERROR(VLOOKUP(D45, '[2]4. Billing Det. for Def-Var'!$A$16:$B$50, 2, FALSE)),"", VLOOKUP(D45,'[2]4. Billing Det. for Def-Var'!$A$16:$B$50, 2, FALSE)) ->  | I45: 1.0315 | J45: 1.0315 | T45: 2.063 | U45: 1098
B46: 17 | C46: =IF(ISERROR(VLOOKUP(D46, D30:AS49, 42, FALSE)),"", VLOOKUP(D46, D30:AS49, 42, FALSE)) -> 10 | D46: Add additional scenarios if required | G46: =IF(ISERROR(VLOOKUP(D46, '[2]4. Billing Det. for Def-Var'!$A$16:$B$50, 2, FALSE)),"", VLOOKUP(D46,'[2]4. Billing Det. for Def-Var'!$A$16:$B$50, 2, FALSE)) ->  | I46: 1.0315 | J46: 1.0315 | T46: 2.063 | U46: 1166
B47: 18 | C47: =IF(ISERROR(VLOOKUP(D47, D30:AS49, 42, FALSE)),"", VLOOKUP(D47, D30:AS49, 42, FALSE)) -> 10 | D47: Add additional scenarios if required | G47: =IF(ISERROR(VLOOKUP(D47, '[2]4. Billing Det. for Def-Var'!$A$16:$B$50, 2, FALSE)),"", VLOOKUP(D47,'[2]4. Billing Det. for Def-Var'!$A$16:$B$50, 2, FALSE)) ->  | I47: 1.0315 | J47: 1.0315 | T47: 2.063 | U47: 1234
B48: 19 | C48: =IF(ISERROR(VLOOKUP(D48, D30:AS49, 42, FALSE)),"", VLOOKUP(D48, D30:AS49, 42, FALSE)) -> 10 | D48: Add additional scenarios if required | G48: =IF(ISERROR(VLOOKUP(D48, '[2]4. Billing Det. for Def-Var'!$A$16:$B$50, 2, FALSE)),"", VLOOKUP(D48,'[2]4. Billing Det. for Def-Var'!$A$16:$B$50, 2, FALSE)) ->  | I48: 1.0315 | J48: 1.0315 | T48: 2.063 | U48: 1302
B49: 20 | C49: =IF(ISERROR(VLOOKUP(D49, D30:AS49, 42, FALSE)),"", VLOOKUP(D49, D30:AS49, 42, FALSE)) -> 10 | D49: Add additional scenarios if required | G49: =IF(ISERROR(VLOOKUP(D49, '[2]4. Billing Det. for Def-Var'!$A$16:$B$50, 2, FALSE)),"", VLOOKUP(D49,'[2]4. Billing Det. for Def-Var'!$A$16:$B$50, 2, FALSE)) ->  | I49: 1.0315 | J49: 1.0315 | T49: 2.063 | U49: 1370
T50: X
D51: Table 2
D52: RATE CLASSES / CATEGORIES (eg: Residential TOU, Residential Retailer) | G52: Units | H52: Sub-Total | N52: Total
H53: A | J53: B | L53: C | N53: Total Bill
H54: $ | I54: % | J54: $ | K54: % | L54: $ | M54: % | N54: $ | O54: %
B55: =H30 -> RPP | C55: 1 | D55: =IF(ISBLANK(D30), "", IF(D30 = "Add additional scenarios if required", "", IF(M30="YES", D30 & " - " & H30 & " - Interval Customers", D30 & " - " &H30))) -> RESIDENTIAL SERVICE CLASSIFICATION - RPP | G55: =IF(ISBLANK(G30), "", G30) -> kWh | H55: =IF(LEN($G55)>1, (SUMPRODUCT(--($C$78:$C$2000=$B30), --($A$78:$A$2000=$D30), --($B$78:$B$2000="ST_A"), $L$78:$L$2000)), "") -> 0.075 | I55: =IF(LEN($G55)>1, (SUMPRODUCT(--($C$78:$C$2000=$B30), --($A$78:$A$2000=$D30), --($B$78:$B$2000="ST_A"), $M$78:$M$2000)), "") -> 0.00279798545 | J55: =IF(LEN($G55)>1, (SUMPRODUCT(--($C$78:$C$2000=$B30), --($A$78:$A$2000=$D30), --($B$78:$B$2000="ST_B"), $L$78:$L$2000)), "") -> 0.075 | K55: =IF(LEN($G55)>1, (SUMPRODUCT(--($C$78:$C$2000=$B30), --($A$78:$A$2000=$D30), --($B$78:$B$2000="ST_B"), $M$78:$M$2000)), "") -> 0.002557935644 | L55: =IF(LEN($G55)>1, (SUMPRODUCT(--($C$78:$C$2000=$B30), --($A$78:$A$2000=$D30), --($B$78:$B$2000="ST_C"), $L$78:$L$2000)), "") -> 0.539175 | M55: =IF(LEN($G55)>1, (SUMPRODUCT(--($C$78:$C$2000=$B30), --($A$78:$A$2000=$D30), --($B$78:$B$2000="ST_C"), $M$78:$M$2000)), "") -> 0.0136388235 | N55: =IF(LEN($G55)>1, (SUMPRODUCT(--($C$78:$C$2000=$B30), --($A$78:$A$2000=$D30), --($B$78:$B$2000=$B55&"_TOTAL"), $L$78:$L$2000)), "") -> 0.56613375 | O55: =IF(LEN($G55)>1, (SUMPRODUCT(--($C$78:$C$2000=$B30), --($A$78:$A$2000=$D30), --($B$78:$B$2000=$B55&"_TOTAL"), $M$78:$M$2000)), "") -> 0.005156509705
B56: =H31 -> RPP | C56: 2 | D56: GENERAL SERVICE LESS THAN 50 KW SERVICE CLASSIFICATION - RPP | G56: kWh | H56: =IF(LEN($G56)>1, (SUMPRODUCT(--($C$78:$C$2000=$B31), --($A$78:$A$2000=$D31), --($B$78:$B$2000="ST_A"), $L$78:$L$2000)), "") -> -1 | I56: =IF(LEN($G56)>1, (SUMPRODUCT(--($C$78:$C$2000=$B31), --($A$78:$A$2000=$D31), --($B$78:$B$2000="ST_A"), $M$78:$M$2000)), "") -> -0.01655903295 | J56: =IF(LEN($G56)>1, (SUMPRODUCT(--($C$78:$C$2000=$B31), --($A$78:$A$2000=$D31), --($B$78:$B$2000="ST_B"), $L$78:$L$2000)), "") -> -1 | K56: =IF(LEN($G56)>1, (SUMPRODUCT(--($C$78:$C$2000=$B31), --($A$78:$A$2000=$D31), --($B$78:$B$2000="ST_B"), $M$78:$M$2000)), "") -> -0.01511760362 | L56: =IF(LEN($G56)>1, (SUMPRODUCT(--($C$78:$C$2000=$B31), --($A$78:$A$2000=$D31), --($B$78:$B$2000="ST_C"), $L$78:$L$2000)), "") -> -0.1748 | M56: =IF(LEN($G56)>1, (SUMPRODUCT(--($C$78:$C$2000=$B31), --($A$78:$A$2000=$D31), --($B$78:$B$2000="ST_C"), $M$78:$M$2000)), "") -> -0.001918552612 | N56: =IF(LEN($G56)>1, (SUMPRODUCT(--($C$78:$C$2000=$B31), --($A$78:$A$2000=$D31), --($B$78:$B$2000=$B56&"_TOTAL"), $L$78:$L$2000)), "") -> -0.18354 | O56: =IF(LEN($G56)>1, (SUMPRODUCT(--($C$78:$C$2000=$B31), --($A$78:$A$2000=$D31), --($B$78:$B$2000=$B56&"_TOTAL"), $M$78:$M$2000)), "") -> -0.0006618553418
B57: Non-RPP (Other) | C57: 3 | D57: GENERAL SERVICE 50 to 4,999 kW SERVICE CLASSIFICATION - Non-RPP (Other) | G57: kW | H57: -61.82 | I57: -0.006914895997 | J57: -61.82 | K57: -0.006914895997 | L57: 520.43 | M57: 0.02232539663 | N57: 588.0859 | O57: 0.003422226415
B58: Non-RPP (Other) | C58: 4 | D58: GENERAL SERVICE 1,000 TO 4,999 KW (CO-GENERATION) SERVICE CLASSIFICATION - Non-RPP (Other) | G58: kW | H58: 54.89 | I58: 0.004275075275 | J58: 54.89 | K58: 0.004275075275 | L58: 696.89 | M58: 0.0242373001 | N58: 787.4857 | O58: 0.004424271857
B59: Non-RPP (Other) | C59: 5 | D59: STANDBY POWER SERVICE CLASSIFICATION - Non-RPP (Other) | G59: kW | H59: 11.9 | I59: 0.0009529682157 | J59: 11.9 | K59: 0.0009529682157 | L59: 11.9 | M59: 0.0009529682157 | N59: 13.447 | O59: 0.0009529491373
B60: Non-RPP (Other) | C60: 6 | D60: LARGE USE SERVICE CLASSIFICATION - Non-RPP (Other) | G60: kW | H60: 1097.46 | I60: 0.02014640684 | J60: 1097.46 | K60: 0.02014640684 | L60: 1097.46 | M60: 0.02014640684 | N60: 1240.1298 | O60: 0.001539248955
B61: Non-RPP (Other) | C61: 7 | D61: STREET LIGHTING SERVICE CLASSIFICATION - Non-RPP (Other) | G61: kW | H61: 0.1198 | I61: 0.02680899153 | J61: 0.1198 | K61: 0.02236536554 | L61: 0.19635 | M61: 0.02707063695 | N61: 0.2218755 | O61: 0.005384069669
B62: Non-RPP (Other) | C62: 8 | D62: SENTINEL LIGHTING SERVICE CLASSIFICATION - Non-RPP (Other) | G62: kW | H62: 0.03937 | I62: 0.02438223819 | J62: 0.03937 | K62: 0.01758400191 | L62: 0.0547 | M62: 0.02088713425 | N62: 0.061811 | O62: 0.002361733867
B63: RPP | C63: 9 | D63: UNMETERED SCATTERED LOAD SERVICE CLASSIFICATION - RPP | G63: kWh | H63: 0.8 | I63: 0.01809954751 | J63: 0.8 | K63: 0.01619825039 | L63: 1.6252 | M63: 0.02185867316 | N63: 1.836476 | O63: 0.006577199433
B64: 0 | C64: 10
B65: 0 | C65: 11
B66: 0 | C66: 12
B67: 0 | C67: 13
B68: 0 | C68: 14
B69: 0 | C69: 15
B70: 0 | C70: 16 | G70: =IF(ISBLANK(G45), "", G45) -> 
B71: 0 | C71: 17 | G71: =IF(ISBLANK(G46), "", G46) -> 
B72: 0 | C72: 18 | G72: =IF(ISBLANK(G47), "", G47) -> 
B73: 0 | C73: 19 | G73: =IF(ISBLANK(G48), "", G48) -> 
B74: 0 | C74: 20 | G74: =IF(ISBLANK(G49), "", G49) -> 
D78: Customer Class: | E78: =D30 -> RESIDENTIAL SERVICE CLASSIFICATION | K78: =IF(N30="DEMAND - INTERVAL","RTSR - INTERVAL METERED","") ->  | T78: X
D79: RPP / Non-RPP: | E79: =H30 -> RPP
D80: Consumption | E80: =K30 -> 750 | F80: kWh
D81: Demand | E81: =L30 -> 0 | F81: kW
D82: Current Loss Factor | E82: =I30 -> 1.0315
D83: Proposed/Approved Loss Factor | E83: =J30 -> 1.0315
F85: Current OEB-Approved | I85: Proposed | L85: Impact
F86: Rate | G86: Volume | H86: Charge | I86: Rate | J86: Volume | K86: Charge | L86: $ Change | M86: % Change
F87: ($) | H87: ($) | I87: ($) | K87: ($)
A88: =$E78 -> RESIDENTIAL SERVICE CLASSIFICATION | D88: Monthly Service Charge | F88: 25.07 | G88: 1 | H88: =G88*F88 -> 25.07 | I88: 25.37 | J88: =G88 -> 1 | K88: =J88*I88 -> 25.37 | L88: =K88-H88 -> 0.3 | M88: =IF(ISERROR(L88/H88), "", L88/H88) -> 0.01196649382
A89: =A88 -> RESIDENTIAL SERVICE CLASSIFICATION | D89: Distribution Volumetric Rate | F89: 0 | G89: =IF($E81>0, $E81, $E80) -> 750 | H89: =G89*F89 -> 0 | I89: 0 | J89: =IF($E81>0, $E81, $E80) -> 750 | K89: =J89*I89 -> 0 | L89: 0 | M89: =IF(ISERROR(L89/H89), "", L89/H89) -> 
A90: =A89 -> RESIDENTIAL SERVICE CLASSIFICATION | D90: RRRP Credit | G90: =IF($E81>0, $E81, $E80) -> 750 | H90: 0 | J90: =IF($E81>0, $E81, $E80) -> 750 | K90: 0
A91: RESIDENTIAL SERVICE CLASSIFICATION | D91: DRP Adjustment | G91: =IF($E81>0, $E81, $E80) -> 750 | H91: 0 | J91: =IF($E81>0, $E81, $E80) -> 750 | K91: 0 | L91: =K91-H91 -> 0 | M91: =IF(ISERROR(L91/H91), "", L91/H91) -> 
A92: RESIDENTIAL SERVICE CLASSIFICATION | D92: Fixed Rate Riders | F92: 0.31 | G92: 1 | H92: 0.31 | I92: 0.31 | J92: =G92 -> 1 | K92: =J92*I92 -> 0.31 | L92: 0 | M92: 0
A93: RESIDENTIAL SERVICE CLASSIFICATION | D93: Volumetric Rate Riders | F93: 0.0019 | G93: =IF($E81>0, $E81, $E80) -> 750 | H93: 1.425 | I93: 0.0016 | J93: =IF($E81>0, $E81, $E80) -> 750 | K93: 1.2 | L93: -0.225 | M93: -0.1578947368
A94: RESIDENTIAL SERVICE CLASSIFICATION | B94: ST_A | C94: =B30 -> 1 | D94: Sub-Total A (excluding pass through) | H94: =SUM(H88:H93) -> 26.805 | K94: =SUM(K88:K93) -> 26.88 | L94: 0.075 | M94: =IF((H94)=0,"",(L94/H94)) -> 0.00279798545
A95: RESIDENTIAL SERVICE CLASSIFICATION | D95: Line Losses on Cost of Power | F95: =IF((E80*12>=150000), 0, IF(E79="RPP",(F111*0.65+F112*0.17+F113*0.18),IF(E79="Non-RPP (Retailer)",F114,F115))) -> 0.08235 | G95: =IF(F95=0, 0, $E80*E82-E80) -> 23.625 | H95: =G95*F95 -> 1.94551875 | I95: =IF((E80*12>=150000), 0, IF(E79="RPP",(I111*0.65+I112*0.17+I113*0.18),IF(E79="Non-RPP (Retailer)",I114,I115))) -> 0.08235 | J95: =IF(I95=0, 0, E80*E83-E80) -> 23.625 | K95: =J95*I95 -> 1.94551875 | L95: =K95-H95 -> 0 | M95: =IF(ISERROR(L95/H95), "", L95/H95) -> 0
A96: RESIDENTIAL SERVICE CLASSIFICATION | D96: Total Deferral/Variance Account Rate Riders | F96: 0 | G96: =IF($E81>0, $E81, $E80) -> 750 | H96: 0 | I96: 0 | J96: =IF($E81>0, $E81, $E80) -> 750 | K96: 0 | L96: 0
A97: RESIDENTIAL SERVICE CLASSIFICATION | D97: CBR Class B Rate Riders | F97: 0 | G97: =IF($E81>0, $E81, $E80) -> 750 | H97: =G97*F97 -> 0 | I97: 0 | J97: =IF($E81>0, $E81, $E80) -> 750 | K97: =J97*I97 -> 0 | L97: 0
A98: RESIDENTIAL SERVICE CLASSIFICATION | D98: GA Rate Riders | F98: 0 | G98: =E80 -> 750 | H98: =G98*F98 -> 0 | I98: 0 | J98: =E80 -> 750 | K98: 0 | L98: 0
A99: RESIDENTIAL SERVICE CLASSIFICATION | D99: Low Voltage Service Charge | F99: 0 | G99: =IF($E81>0, $E81, $E80) -> 750 | H99: 0 | J99: =IF($E81>0, $E81, $E80) -> 750 | K99: 0 | L99: 0
A100: RESIDENTIAL SERVICE CLASSIFICATION | D100: Smart Meter Entity Charge (if applicable) | F100: =IF(OR(ISNUMBER(SEARCH("RESIDENTIAL", E78))=TRUE, ISNUMBER(SEARCH("GENERAL SERVICE LESS THAN 50", E78))=TRUE), SME, 0) -> 0.57 | G100: 1 | H100: =G100*F100 -> 0.57 | I100: =IF(OR(ISNUMBER(SEARCH("RESIDENTIAL", E78))=TRUE, ISNUMBER(SEARCH("GENERAL SERVICE LESS THAN 50", E78))=TRUE), SME, 0) -> 0.57 | J100: 1 | K100: =J100*I100 -> 0.57 | L100: 0 | M100: =IF(ISERROR(L100/H100), "", L100/H100) -> 0
A101: RESIDENTIAL SERVICE CLASSIFICATION | D101: Additional Fixed Rate Riders | F101: 0 | G101: 1 | H101: 0 | I101: 0 | J101: 1 | K101: =J101*I101 -> 0 | L101: =K101-H101 -> 0 | M101: =IF(ISERROR(L101/H101), "", L101/H101) -> 
A102: RESIDENTIAL SERVICE CLASSIFICATION | D102: Additional Volumetric Rate Riders | G102: =IF($E81>0, $E81, $E80) -> 750 | H102: =G102*F102 -> 0 | I102: 0 | J102: =IF($E81>0, $E81, $E80) -> 750 | K102: =J102*I102 -> 0 | L102: 0 | M102: =IF(ISERROR(L102/H102), "", L102/H102) -> 
A103: RESIDENTIAL SERVICE CLASSIFICATION | B103: ST_B | C103: =B30 -> 1 | D103: Sub-Total B - Distribution (includes Sub-Total A) | H103: =SUM(H94:H102) -> 29.32051875 | K103: =SUM(K94:K102) -> 29.39551875 | L103: 0.075 | M103: =IF((H103)=0,"",(L103/H103)) -> 0.002557935644
A104: RESIDENTIAL SERVICE CLASSIFICATION | D104: RTSR - Network | F104: 0.007 | G104: =IF($E81>0, $E81, $E80*$E82) -> 773.625 | H104: =G104*F104 -> 5.415375 | I104: 0.0073 | J104: =IF($E81>0, $E81, $E80*$E83) -> 773.625 | K104: =J104*I104 -> 5.6474625 | L104: 0.2320875 | M104: =IF(ISERROR(L104/H104), "", L104/H104) -> 0.04285714286 | N104: =IF(ISERROR(ABS(M104)), "", IF(ABS(M104)>=4%, "In the manager's summary, discuss the reasoning for the change in RTSR rates", "")) -> In the manager's summary, discuss the reasoning for the change in RTSR rates
A105: RESIDENTIAL SERVICE CLASSIFICATION | D105: RTSR - Connection and/or Line and Transformation Connection | F105: 0.0062 | G105: =IF($E81>0, $E81, $E80*$E82) -> 773.625 | H105: =G105*F105 -> 4.796475 | I105: 0.0065 | J105: =IF($E81>0, $E81, $E80*$E83) -> 773.625 | K105: =J105*I105 -> 5.0285625 | L105: 0.2320875 | M105: =IF(ISERROR(L105/H105), "", L105/H105) -> 0.04838709677 | N105: =IF(ISERROR(ABS(M105)), "", IF(ABS(M105)>=4%, "In the manager's summary, discuss the reasoning for the change in RTSR rates", "")) -> In the manager's summary, discuss the reasoning for the change in RTSR rates
A106: RESIDENTIAL SERVICE CLASSIFICATION | B106: ST_C | C106: =B30 -> 1 | D106: Sub-Total C - Delivery (including Sub-Total B) | H106: =SUM(H103:H105) -> 39.53236875 | K106: =SUM(K103:K105) -> 40.07154375 | L106: 0.539175 | M106: =IF((H106)=0,"",(L106/H106)) -> 0.0136388235
A107: RESIDENTIAL SERVICE CLASSIFICATION | D107: Wholesale Market Service Charge (WMSC) | F107: =IF(AND('[2]1. Information Sheet'!$F$26:$H$26>='[2]17. Regulatory Charges'!$D$14,'[2]1. Information Sheet'!$F$26:$H$26<'[2]17. Regulatory Charges'!$E$14),'[2]17. Regulatory Charges'!$D$15+'[2]17. Regulatory Charges'!$D$16,'[2]17. Regulatory Charges'!$E$15+'[2]17. Regulatory Charges'!$E$16) -> 0.0034 | G107: =E80*E82 -> 773.625 | H107: =G107*F107 -> 2.630325 | I107: ='[2]17. Regulatory Charges'!$E$15+'[2]17. Regulatory Charges'!$E$16 -> 0.0034 | J107: =E80*E83 -> 773.625 | K107: =J107*I107 -> 2.630325 | L107: 0 | M107: =IF(ISERROR(L107/H107), "", L107/H107) -> 0
A108: RESIDENTIAL SERVICE CLASSIFICATION | D108: Rural and Remote Rate Protection (RRRP) | F108: =IF(AND('[2]1. Information Sheet'!$F$26:$H$26>='[2]17. Regulatory Charges'!$D$14,'[2]1. Information Sheet'!$F$26:$H$26<'[2]17. Regulatory Charges'!$D$14),'[2]17. Regulatory Charges'!$D$17,'[2]17. Regulatory Charges'!$E$17) -> 0.0005 | G108: =E80*E82 -> 773.625 | H108: 0.3868125 | I108: ='[2]17. Regulatory Charges'!$E$17 -> 0.0005 | J108: =E80*E83 -> 773.625 | K108: 0.3868125 | L108: 0 | M108: 0
A109: RESIDENTIAL SERVICE CLASSIFICATION | D109: Standard Supply Service Charge | F109: =IF(AND('[2]1. Information Sheet'!$F$26:$H$26>='[2]17. Regulatory Charges'!$D$14,'[2]1. Information Sheet'!$F$26:$H$26<'[2]17. Regulatory Charges'!$D$14),'[2]17. Regulatory Charges'!$D$18,'[2]17. Regulatory Charges'!$E$18) -> 0.25 | G109: 1 | H109: 0.25 | I109: ='[2]17. Regulatory Charges'!$E$18 -> 0.25 | J109: 1 | K109: 0.25 | L109: 0 | M109: 0
A110: RESIDENTIAL SERVICE CLASSIFICATION | D110: Ontario Electricity Support Program (OESP)
A111: RESIDENTIAL SERVICE CLASSIFICATION | B111: RPP | D111: TOU - Off Peak | F111: =OffPeak -> 0.065 | G111: =IF(AND(E80*12>=150000),0.65*E80*E82,0.65*E80) -> 487.5 | H111: 31.6875 | I111: =OffPeak -> 0.065 | J111: =IF(AND(E80*12>=150000),0.65*E80*E83,0.65*E80) -> 487.5 | K111: 31.6875 | L111: =K111-H111 -> 0 | M111: 0
A112: RESIDENTIAL SERVICE CLASSIFICATION | B112: RPP | D112: TOU - Mid Peak | F112: =MidPeak -> 0.094 | G112: =IF(AND(E80*12>=150000),0.17*E80*E82,0.17*E80) -> 127.5 | H112: 11.985 | I112: =MidPeak -> 0.094 | J112: =IF(AND(E80*12>=150000),0.17*E80*E83,0.17*E80) -> 127.5 | K112: 11.985 | L112: =K112-H112 -> 0 | M112: 0
A113: RESIDENTIAL SERVICE CLASSIFICATION | B113: RPP | D113: TOU - On Peak | F113: =OnPeak -> 0.134 | G113: =IF(AND(E80*12>=150000),0.18*E80*E82,0.18*E80) -> 135 | H113: 18.09 | I113: =OnPeak -> 0.134 | J113: =IF(AND(E80*12>=150000),0.18*E80*E83,0.18*E80) -> 135 | K113: 18.09 | L113: =K113-H113 -> 0 | M113: 0
A114: RESIDENTIAL SERVICE CLASSIFICATION | B114: Non-RPP (Retailer) | D114: Non-RPP Retailer Avg. Price | F114: 0.1101 | G114: =IF(AND(E80*12>=150000),E80*E82,E80) -> 750 | H114: =G114*F114 -> 82.575 | I114: =F114 -> 0.1101 | J114: =IF(AND(E80*12>=150000),E80*E83,E80) -> 750 | K114: =J114*I114 -> 82.575 | L114: =K114-H114 -> 0 | M114: 0
A115: RESIDENTIAL SERVICE CLASSIFICATION | B115: Non-RPP (Other) | D115: Average IESO Wholesale Market Price | F115: 0.1101 | G115: =IF(AND(E80*12>=150000),E80*E82,E80) -> 750 | H115: =G115*F115 -> 82.575 | I115: =F115 -> 0.1101 | J115: =IF(AND(E80*12>=150000),E80*E83,E80) -> 750 | K115: =J115*I115 -> 82.575 | L115: =K115-H115 -> 0 | M115: 0
A116: RESIDENTIAL SERVICE CLASSIFICATION
A117: RESIDENTIAL SERVICE CLASSIFICATION | B117: RPP | D117: Total Bill on TOU (before Taxes) | H117: =SUM(H107:H113,H106) -> 104.5620063 | K117: =SUM(K107:K113,K106) -> 105.1011813 | L117: =K117-H117 -> 0.539175 | M117: =IF((H117)=0,"",(L117/H117)) -> 0.005156509705
A118: RESIDENTIAL SERVICE CLASSIFICATION | B118: RPP | D118: HST | F118: 0.13 | H118: =H117*F118 -> 13.59306081 | I118: 0.13 | K118: =K117*I118 -> 13.66315356 | L118: =K118-H118 -> 0.07009275 | M118: =IF((H118)=0,"",(L118/H118)) -> 0.005156509705
A119: RESIDENTIAL SERVICE CLASSIFICATION | B119: RPP | D119: 8% Rebate | F119: 0.08 | H119: =H117*-F119 -> -8.3649605 | I119: 0.08 | K119: =K117*-I119 -> -8.4080945 | L119: =K119-H119 -> -0.043134
A120: RESIDENTIAL SERVICE CLASSIFICATION | B120: RPP_TOTAL | C120: =B30 -> 1 | D120: Total Bill on TOU | H120: =H117+H118+H119 -> 109.7901066 | K120: =K117+K118+K119 -> 110.3562403 | L120: =K120-H120 -> 0.56613375 | M120: =IF((H120)=0,"",(L120/H120)) -> 0.005156509705
A121: RESIDENTIAL SERVICE CLASSIFICATION | B121: RPP
A122: RESIDENTIAL SERVICE CLASSIFICATION | B122: Non-RPP (Retailer) | D122: Total Bill on Non-RPP Avg. Price | H122: =SUM(H114,H107:H110,H106) -> 125.3745063 | K122: =SUM(K114,K107:K110,K106) -> 125.9136813 | L122: =K122-H122 -> 0.539175 | M122: =IF((H122)=0,"",(L122/H122)) -> 0.004300515441
A123: RESIDENTIAL SERVICE CLASSIFICATION | B123: Non-RPP (Retailer) | D123: HST | F123: 0.13 | H123: =H122*F123 -> 16.29868581 | I123: 0.13 | K123: =K122*I123 -> 16.36877856 | L123: =K123-H123 -> 0.07009275 | M123: =IF((H123)=0,"",(L123/H123)) -> 0.004300515441
A124: RESIDENTIAL SERVICE CLASSIFICATION | B124: Non-RPP (Retailer) | D124: 8% Rebate | F124: 0.08 | I124: 0.08
A125: RESIDENTIAL SERVICE CLASSIFICATION | B125: Non-RPP (Retailer)_TOTAL | D125: Total Bill on Non-RPP Avg. Price | H125: =SUM(H122,H123) -> 141.6731921 | K125: =SUM(K122,K123) -> 142.2824598 | L125: =K125-H125 -> 0.60926775 | M125: =IF((H125)=0,"",(L125/H125)) -> 0.004300515441
A126: RESIDENTIAL SERVICE CLASSIFICATION | B126: Non-RPP (Retailer)
A127: RESIDENTIAL SERVICE CLASSIFICATION | B127: Non-RPP (Other) | D127: Total Bill on Average IESO Wholesale Market Price | H127: =SUM(H115,H107:H110,H106) -> 125.3745063 | K127: =SUM(K115,K107:K110,K106) -> 125.9136813 | L127: =K127-H127 -> 0.539175 | M127: =IF((H127)=0,"",(L127/H127)) -> 0.004300515441
A128: RESIDENTIAL SERVICE CLASSIFICATION | B128: Non-RPP (Other) | D128: HST | F128: 0.13 | H128: =H127*F128 -> 16.29868581 | I128: 0.13 | K128: =K127*I128 -> 16.36877856 | L128: =K128-H128 -> 0.07009275 | M128: =IF((H128)=0,"",(L128/H128)) -> 0.004300515441
A129: RESIDENTIAL SERVICE CLASSIFICATION | B129: Non-RPP (Other) | D129: 8% Rebate | F129: 0.08 | I129: 0.08
A130: RESIDENTIAL SERVICE CLASSIFICATION | B130: Non-RPP (Other)_TOTAL | D130: Total Bill on Average IESO Wholesale Market Price | H130: =SUM(H127,H128) -> 141.6731921 | K130: =SUM(K127,K128) -> 142.2824598 | L130: =K130-H130 -> 0.60926775 | M130: =IF((H130)=0,"",(L130/H130)) -> 0.004300515441
A131: RESIDENTIAL SERVICE CLASSIFICATION | B131: Non-RPP (Other)
D134: Customer Class: | E134: =D31 -> GENERAL SERVICE LESS THAN 50 KW SERVICE CLASSIFICATION | K134: =IF(N31="DEMAND - INTERVAL","RTSR - INTERVAL METERED","") ->  | T134: X
D135: RPP / Non-RPP: | E135: =H31 -> RPP
D136: Consumption | E136: =K31 -> 2000 | F136: kWh
D137: Demand | E137: =L31 -> 0 | F137: kW
D138: Current Loss Factor | E138: =I31 -> 1.0315
D139: Proposed/Approved Loss Factor | E139: =J31 -> 1.0315
F141: Current OEB-Approved | I141: Proposed | L141: Impact
F142: Rate | G142: Volume | H142: Charge | I142: Rate | J142: Volume | K142: Charge | L142: $ Change | M142: % Change
F143: ($) | H143: ($) | I143: ($) | K143: ($)
A144: =$E134 -> GENERAL SERVICE LESS THAN 50 KW SERVICE CLASSIFICATION | D144: Monthly Service Charge | F144: 32.98 | G144: 1 | H144: =G144*F144 -> 32.98 | I144: 33.38 | J144: =G144 -> 1 | K144: =J144*I144 -> 33.38 | L144: =K144-H144 -> 0.4 | M144: =IF(ISERROR(L144/H144), "", L144/H144) -> 0.01212856277
A145: =A144 -> GENERAL SERVICE LESS THAN 50 KW SERVICE CLASSIFICATION | D145: Distribution Volumetric Rate | F145: 0.011 | G145: =IF($E137>0, $E137, $E136) -> 2000 | H145: =G145*F145 -> 22 | I145: 0.0111 | J145: =IF($E137>0, $E137, $E136) -> 2000 | K145: =J145*I145 -> 22.2 | L145: 0.2 | M145: =IF(ISERROR(L145/H145), "", L145/H145) -> 0.009090909091
A146: =A145 -> GENERAL SERVICE LESS THAN 50 KW SERVICE CLASSIFICATION | D146: RRRP Credit | G146: =IF($E137>0, $E137, $E136) -> 2000 | H146: 0 | J146: =IF($E137>0, $E137, $E136) -> 2000 | K146: 0
A147: GENERAL SERVICE LESS THAN 50 KW SERVICE CLASSIFICATION | D147: DRP Adjustment | G147: =IF($E137>0, $E137, $E136) -> 2000 | H147: 0 | J147: =IF($E137>0, $E137, $E136) -> 2000 | K147: 0 | L147: =K147-H147 -> 0 | M147: =IF(ISERROR(L147/H147), "", L147/H147) -> 
A148: GENERAL SERVICE LESS THAN 50 KW SERVICE CLASSIFICATION | D148: Fixed Rate Riders | F148: 0.41 | G148: 1 | H148: 0.41 | I148: 0.41 | J148: =G148 -> 1 | K148: =J148*I148 -> 0.41 | L148: 0 | M148: 0
A149: GENERAL SERVICE LESS THAN 50 KW SERVICE CLASSIFICATION | D149: Volumetric Rate Riders | F149: 0.0025 | G149: =IF($E137>0, $E137, $E136) -> 2000 | H149: 5 | I149: 0.0017 | J149: =IF($E137>0, $E137, $E136) -> 2000 | K149: 3.4 | L149: -1.6 | M149: -0.32
A150: GENERAL SERVICE LESS THAN 50 KW SERVICE CLASSIFICATION | B150: ST_A | C150: =B31 -> 2 | D150: Sub-Total A (excluding pass through) | H150: =SUM(H144:H149) -> 60.39 | K150: =SUM(K144:K149) -> 59.39 | L150: -1 | M150: =IF((H150)=0,"",(L150/H150)) -> -0.01655903295
A151: GENERAL SERVICE LESS THAN 50 KW SERVICE CLASSIFICATION | D151: Line Losses on Cost of Power | F151: =IF((E136*12>=150000), 0, IF(E135="RPP",(F167*0.65+F168*0.17+F169*0.18),IF(E135="Non-RPP (Retailer)",F170,F171))) -> 0.08235 | G151: =IF(F151=0, 0, $E136*E138-E136) -> 63 | H151: =G151*F151 -> 5.18805 | I151: =IF((E136*12>=150000), 0, IF(E135="RPP",(I167*0.65+I168*0.17+I169*0.18),IF(E135="Non-RPP (Retailer)",I170,I171))) -> 0.08235 | J151: =IF(I151=0, 0, E136*E139-E136) -> 63 | K151: =J151*I151 -> 5.18805 | L151: =K151-H151 -> 0 | M151: =IF(ISERROR(L151/H151), "", L151/H151) -> 0
A152: GENERAL SERVICE LESS THAN 50 KW SERVICE CLASSIFICATION | D152: Total Deferral/Variance Account Rate Riders | F152: 0 | G152: =IF($E137>0, $E137, $E136) -> 2000 | H152: 0 | I152: 0 | J152: =IF($E137>0, $E137, $E136) -> 2000 | K152: 0 | L152: 0
A153: GENERAL SERVICE LESS THAN 50 KW SERVICE CLASSIFICATION | D153: CBR Class B Rate Riders | F153: 0 | G153: =IF($E137>0, $E137, $E136) -> 2000 | H153: =G153*F153 -> 0 | I153: 0 | J153: =IF($E137>0, $E137, $E136) -> 2000 | K153: =J153*I153 -> 0 | L153: 0
A154: GENERAL SERVICE LESS THAN 50 KW SERVICE CLASSIFICATION | D154: GA Rate Riders | F154: 0 | G154: =E136 -> 2000 | H154: =G154*F154 -> 0 | I154: 0 | J154: =E136 -> 2000 | K154: 0 | L154: 0
A155: GENERAL SERVICE LESS THAN 50 KW SERVICE CLASSIFICATION | D155: Low Voltage Service Charge | F155: 0 | G155: =IF($E137>0, $E137, $E136) -> 2000 | H155: 0 | J155: =IF($E137>0, $E137, $E136) -> 2000 | K155: 0 | L155: 0
A156: GENERAL SERVICE LESS THAN 50 KW SERVICE CLASSIFICATION | D156: Smart Meter Entity Charge (if applicable) | F156: =IF(OR(ISNUMBER(SEARCH("RESIDENTIAL", E134))=TRUE, ISNUMBER(SEARCH("GENERAL SERVICE LESS THAN 50", E134))=TRUE), SME, 0) -> 0.57 | G156: 1 | H156: =G156*F156 -> 0.57 | I156: =IF(OR(ISNUMBER(SEARCH("RESIDENTIAL", E134))=TRUE, ISNUMBER(SEARCH("GENERAL SERVICE LESS THAN 50", E134))=TRUE), SME, 0) -> 0.57 | J156: 1 | K156: =J156*I156 -> 0.57 | L156: 0 | M156: =IF(ISERROR(L156/H156), "", L156/H156) -> 0
A157: GENERAL SERVICE LESS THAN 50 KW SERVICE CLASSIFICATION | D157: Additional Fixed Rate Riders | F157: 0 | G157: 1 | H157: 0 | I157: 0 | J157: 1 | K157: =J157*I157 -> 0 | L157: =K157-H157 -> 0 | M157: =IF(ISERROR(L157/H157), "", L157/H157) -> 
A158: GENERAL SERVICE LESS THAN 50 KW SERVICE CLASSIFICATION | D158: Additional Volumetric Rate Riders | G158: =IF($E137>0, $E137, $E136) -> 2000 | H158: =G158*F158 -> 0 | I158: 0 | J158: =IF($E137>0, $E137, $E136) -> 2000 | K158: =J158*I158 -> 0 | L158: 0 | M158: =IF(ISERROR(L158/H158), "", L158/H158) -> 
A159: GENERAL SERVICE LESS THAN 50 KW SERVICE CLASSIFICATION | B159: ST_B | C159: =B31 -> 2 | D159: Sub-Total B - Distribution (includes Sub-Total A) | H159: =SUM(H150:H158) -> 66.14805 | K159: =SUM(K150:K158) -> 65.14805 | L159: -1 | M159: =IF((H159)=0,"",(L159/H159)) -> -0.01511760362
A160: GENERAL SERVICE LESS THAN 50 KW SERVICE CLASSIFICATION | D160: RTSR - Network | F160: 0.0066 | G160: =IF($E137>0, $E137, $E136*$E138) -> 2063 | H160: =G160*F160 -> 13.6158 | I160: 0.0068 | J160: =IF($E137>0, $E137, $E136*$E139) -> 2063 | K160: =J160*I160 -> 14.0284 | L160: 0.4126 | M160: =IF(ISERROR(L160/H160), "", L160/H160) -> 0.0303030303 | N160: =IF(ISERROR(ABS(M160)), "", IF(ABS(M160)>=4%, "In the manager's summary, discuss the reasoning for the change in RTSR rates", "")) -> 
A161: GENERAL SERVICE LESS THAN 50 KW SERVICE CLASSIFICATION | D161: RTSR - Connection and/or Line and Transformation Connection | F161: 0.0055 | G161: =IF($E137>0, $E137, $E136*$E138) -> 2063 | H161: =G161*F161 -> 11.3465 | I161: 0.0057 | J161: =IF($E137>0, $E137, $E136*$E139) -> 2063 | K161: =J161*I161 -> 11.7591 | L161: 0.4126 | M161: =IF(ISERROR(L161/H161), "", L161/H161) -> 0.03636363636 | N161: =IF(ISERROR(ABS(M161)), "", IF(ABS(M161)>=4%, "In the manager's summary, discuss the reasoning for the change in RTSR rates", "")) -> 
A162: GENERAL SERVICE LESS THAN 50 KW SERVICE CLASSIFICATION | B162: ST_C | C162: =B31 -> 2 | D162: Sub-Total C - Delivery (including Sub-Total B) | H162: =SUM(H159:H161) -> 91.11035 | K162: =SUM(K159:K161) -> 90.93555 | L162: -0.1748 | M162: =IF((H162)=0,"",(L162/H162)) -> -0.001918552612
A163: GENERAL SERVICE LESS THAN 50 KW SERVICE CLASSIFICATION | D163: Wholesale Market Service Charge (WMSC) | F163: =IF(AND('[2]1. Information Sheet'!$F$26:$H$26>='[2]17. Regulatory Charges'!$D$14,'[2]1. Information Sheet'!$F$26:$H$26<'[2]17. Regulatory Charges'!$E$14),'[2]17. Regulatory Charges'!$D$15+'[2]17. Regulatory Charges'!$D$16,'[2]17. Regulatory Charges'!$E$15+'[2]17. Regulatory Charges'!$E$16) -> 0.0034 | G163: =E136*E138 -> 2063 | H163: =G163*F163 -> 7.0142 | I163: ='[2]17. Regulatory Charges'!$E$15+'[2]17. Regulatory Charges'!$E$16 -> 0.0034 | J163: =E136*E139 -> 2063 | K163: =J163*I163 -> 7.0142 | L163: 0 | M163: =IF(ISERROR(L163/H163), "", L163/H163) -> 0
A164: GENERAL SERVICE LESS THAN 50 KW SERVICE CLASSIFICATION | D164: Rural and Remote Rate Protection (RRRP) | F164: =IF(AND('[2]1. Information Sheet'!$F$26:$H$26>='[2]17. Regulatory Charges'!$D$14,'[2]1. Information Sheet'!$F$26:$H$26<'[2]17. Regulatory Charges'!$D$14),'[2]17. Regulatory Charges'!$D$17,'[2]17. Regulatory Charges'!$E$17) -> 0.0005 | G164: =E136*E138 -> 2063 | H164: 1.0315 | I164: ='[2]17. Regulatory Charges'!$E$17 -> 0.0005 | J164: =E136*E139 -> 2063 | K164: 1.0315 | L164: 0 | M164: 0
A165: GENERAL SERVICE LESS THAN 50 KW SERVICE CLASSIFICATION | D165: Standard Supply Service Charge | F165: =IF(AND('[2]1. Information Sheet'!$F$26:$H$26>='[2]17. Regulatory Charges'!$D$14,'[2]1. Information Sheet'!$F$26:$H$26<'[2]17. Regulatory Charges'!$D$14),'[2]17. Regulatory Charges'!$D$18,'[2]17. Regulatory Charges'!$E$18) -> 0.25 | G165: 1 | H165: 0.25 | I165: ='[2]17. Regulatory Charges'!$E$18 -> 0.25 | J165: 1 | K165: 0.25 | L165: 0 | M165: 0
A166: GENERAL SERVICE LESS THAN 50 KW SERVICE CLASSIFICATION | D166: Ontario Electricity Support Program (OESP)
A167: GENERAL SERVICE LESS THAN 50 KW SERVICE CLASSIFICATION | B167: RPP | D167: TOU - Off Peak | F167: =OffPeak -> 0.065 | G167: =IF(AND(E136*12>=150000),0.65*E136*E138,0.65*E136) -> 1300 | H167: 84.5 | I167: =OffPeak -> 0.065 | J167: =IF(AND(E136*12>=150000),0.65*E136*E139,0.65*E136) -> 1300 | K167: 84.5 | L167: =K167-H167 -> 0 | M167: 0
A168: GENERAL SERVICE LESS THAN 50 KW SERVICE CLASSIFICATION | B168: RPP | D168: TOU - Mid Peak | F168: =MidPeak -> 0.094 | G168: =IF(AND(E136*12>=150000),0.17*E136*E138,0.17*E136) -> 340 | H168: 31.96 | I168: =MidPeak -> 0.094 | J168: =IF(AND(E136*12>=150000),0.17*E136*E139,0.17*E136) -> 340 | K168: 31.96 | L168: =K168-H168 -> 0 | M168: 0
A169: GENERAL SERVICE LESS THAN 50 KW SERVICE CLASSIFICATION | B169: RPP | D169: TOU - On Peak | F169: =OnPeak -> 0.134 | G169: =IF(AND(E136*12>=150000),0.18*E136*E138,0.18*E136) -> 360 | H169: 48.24 | I169: =OnPeak -> 0.134 | J169: =IF(AND(E136*12>=150000),0.18*E136*E139,0.18*E136) -> 360 | K169: 48.24 | L169: =K169-H169 -> 0 | M169: 0
A170: GENERAL SERVICE LESS THAN 50 KW SERVICE CLASSIFICATION | B170: Non-RPP (Retailer) | D170: Non-RPP Retailer Avg. Price | F170: 0.1101 | G170: =IF(AND(E136*12>=150000),E136*E138,E136) -> 2000 | H170: =G170*F170 -> 220.2 | I170: =F170 -> 0.1101 | J170: =IF(AND(E136*12>=150000),E136*E139,E136) -> 2000 | K170: =J170*I170 -> 220.2 | L170: =K170-H170 -> 0 | M170: 0
A171: GENERAL SERVICE LESS THAN 50 KW SERVICE CLASSIFICATION | B171: Non-RPP (Other) | D171: Average IESO Wholesale Market Price | F171: 0.1101 | G171: =IF(AND(E136*12>=150000),E136*E138,E136) -> 2000 | H171: =G171*F171 -> 220.2 | I171: =F171 -> 0.1101 | J171: =IF(AND(E136*12>=150000),E136*E139,E136) -> 2000 | K171: =J171*I171 -> 220.2 | L171: =K171-H171 -> 0 | M171: 0
A172: GENERAL SERVICE LESS THAN 50 KW SERVICE CLASSIFICATION
A173: GENERAL SERVICE LESS THAN 50 KW SERVICE CLASSIFICATION | B173: RPP | D173: Total Bill on TOU (before Taxes) | H173: =SUM(H163:H169,H162) -> 264.10605 | K173: =SUM(K163:K169,K162) -> 263.93125 | L173: =K173-H173 -> -0.1748 | M173: =IF((H173)=0,"",(L173/H173)) -> -0.0006618553418
A174: GENERAL SERVICE LESS THAN 50 KW SERVICE CLASSIFICATION | B174: RPP | D174: HST | F174: 0.13 | H174: =H173*F174 -> 34.3337865 | I174: 0.13 | K174: =K173*I174 -> 34.3110625 | L174: =K174-H174 -> -0.022724 | M174: =IF((H174)=0,"",(L174/H174)) -> -0.0006618553418
A175: GENERAL SERVICE LESS THAN 50 KW SERVICE CLASSIFICATION | B175: RPP | D175: 8% Rebate | F175: 0.08 | H175: =H173*-F175 -> -21.128484 | I175: 0.08 | K175: =K173*-I175 -> -21.1145 | L175: =K175-H175 -> 0.013984
A176: GENERAL SERVICE LESS THAN 50 KW SERVICE CLASSIFICATION | B176: RPP_TOTAL | C176: =B31 -> 2 | D176: Total Bill on TOU | H176: =H173+H174+H175 -> 277.3113525 | K176: =K173+K174+K175 -> 277.1278125 | L176: =K176-H176 -> -0.18354 | M176: =IF((H176)=0,"",(L176/H176)) -> -0.0006618553418
A177: GENERAL SERVICE LESS THAN 50 KW SERVICE CLASSIFICATION | B177: RPP
A178: GENERAL SERVICE LESS THAN 50 KW SERVICE CLASSIFICATION | B178: Non-RPP (Retailer) | D178: Total Bill on Non-RPP Avg. Price | H178: =SUM(H170,H163:H166,H162) -> 319.60605 | K178: =SUM(K170,K163:K166,K162) -> 319.43125 | L178: =K178-H178 -> -0.1748 | M178: =IF((H178)=0,"",(L178/H178)) -> -0.0005469233139
A179: GENERAL SERVICE LESS THAN 50 KW SERVICE CLASSIFICATION | B179: Non-RPP (Retailer) | D179: HST | F179: 0.13 | H179: =H178*F179 -> 41.5487865 | I179: 0.13 | K179: =K178*I179 -> 41.5260625 | L179: =K179-H179 -> -0.022724 | M179: =IF((H179)=0,"",(L179/H179)) -> -0.0005469233139
A180: GENERAL SERVICE LESS THAN 50 KW SERVICE CLASSIFICATION | B180: Non-RPP (Retailer) | D180: 8% Rebate | F180: 0.08 | I180: 0.08
A181: GENERAL SERVICE LESS THAN 50 KW SERVICE CLASSIFICATION | B181: Non-RPP (Retailer)_TOTAL | D181: Total Bill on Non-RPP Avg. Price | H181: =SUM(H178,H179) -> 361.1548365 | K181: =SUM(K178,K179) -> 360.9573125 | L181: =K181-H181 -> -0.197524 | M181: =IF((H181)=0,"",(L181/H181)) -> -0.0005469233139
A182: GENERAL SERVICE LESS THAN 50 KW SERVICE CLASSIFICATION | B182: Non-RPP (Retailer)
A183: GENERAL SERVICE LESS THAN 50 KW SERVICE CLASSIFICATION | B183: Non-RPP (Other) | D183: Total Bill on Average IESO Wholesale Market Price | H183: =SUM(H171,H163:H166,H162) -> 319.60605 | K183: =SUM(K171,K163:K166,K162) -> 319.43125 | L183: =K183-H183 -> -0.1748 | M183: =IF((H183)=0,"",(L183/H183)) -> -0.0005469233139
A184: GENERAL SERVICE LESS THAN 50 KW SERVICE CLASSIFICATION | B184: Non-RPP (Other) | D184: HST | F184: 0.13 | H184: =H183*F184 -> 41.5487865 | I184: 0.13 | K184: =K183*I184 -> 41.5260625 | L184: =K184-H184 -> -0.022724 | M184: =IF((H184)=0,"",(L184/H184)) -> -0.0005469233139
A185: GENERAL SERVICE LESS THAN 50 KW SERVICE CLASSIFICATION | B185: Non-RPP (Other) | D185: 8% Rebate | F185: 0.08 | I185: 0.08
A186: GENERAL SERVICE LESS THAN 50 KW SERVICE CLASSIFICATION | B186: Non-RPP (Other)_TOTAL | D186: Total Bill on Average IESO Wholesale Market Price | H186: =SUM(H183,H184) -> 361.1548365 | K186: =SUM(K183,K184) -> 360.9573125 | L186: =K186-H186 -> -0.197524 | M186: =IF((H186)=0,"",(L186/H186)) -> -0.0005469233139
A187: GENERAL SERVICE LESS THAN 50 KW SERVICE CLASSIFICATION | B187: Non-RPP (Other)
D190: Customer Class: | E190: =D32 -> GENERAL SERVICE 50 to 4,999 kW SERVICE CLASSIFICATION | K190: =IF(N32="DEMAND - INTERVAL","RTSR - INTERVAL METERED","") ->  | T190: X
D191: RPP / Non-RPP: | E191: =H32 -> Non-RPP (Other)
D192: Consumption | E192: =K32 -> 1095000 | F192: kWh
D193: Demand | E193: =L32 -> 2500 | F193: kW
D194: Current Loss Factor | E194: =I32 -> 1.0315
D195: Proposed/Approved Loss Factor | E195: =J32 -> 1.0315
F197: Current OEB-Approved | I197: Proposed | L197: Impact
F198: Rate | G198: Volume | H198: Charge | I198: Rate | J198: Volume | K198: Charge | L198: $ Change | M198: % Change
F199: ($) | H199: ($) | I199: ($) | K199: ($)
A200: =$E190 -> GENERAL SERVICE 50 to 4,999 kW SERVICE CLASSIFICATION | D200: Monthly Service Charge | F200: 161.11 | G200: 1 | H200: =G200*F200 -> 161.11 | I200: 163.04 | J200: =G200 -> 1 | K200: =J200*I200 -> 163.04 | L200: =K200-H200 -> 1.93 | M200: =IF(ISERROR(L200/H200), "", L200/H200) -> 0.01197939296
A201: =A200 -> GENERAL SERVICE 50 to 4,999 kW SERVICE CLASSIFICATION | D201: Distribution Volumetric Rate | F201: 2.7818 | G201: =IF($E193>0, $E193, $E192) -> 2500 | H201: =G201*F201 -> 6954.5 | I201: 2.8152 | J201: =IF($E193>0, $E193, $E192) -> 2500 | K201: =J201*I201 -> 7038 | L201: 83.5 | M201: =IF(ISERROR(L201/H201), "", L201/H201) -> 0.01200661442
A202: =A201 -> GENERAL SERVICE 50 to 4,999 kW SERVICE CLASSIFICATION | D202: RRRP Credit | G202: =IF($E193>0, $E193, $E192) -> 2500 | H202: 0 | J202: =IF($E193>0, $E193, $E192) -> 2500 | K202: 0
A203: GENERAL SERVICE 50 to 4,999 kW SERVICE CLASSIFICATION | D203: DRP Adjustment | G203: =IF($E193>0, $E193, $E192) -> 2500 | H203: 0 | J203: =IF($E193>0, $E193, $E192) -> 2500 | K203: 0 | L203: =K203-H203 -> 0 | M203: =IF(ISERROR(L203/H203), "", L203/H203) -> 
A204: GENERAL SERVICE 50 to 4,999 kW SERVICE CLASSIFICATION | D204: Fixed Rate Riders | F204: 2.01 | G204: 1 | H204: 2.01 | I204: 2.01 | J204: =G204 -> 1 | K204: =J204*I204 -> 2.01 | L204: 0 | M204: 0
A205: GENERAL SERVICE 50 to 4,999 kW SERVICE CLASSIFICATION | D205: Volumetric Rate Riders | F205: 0.729 | G205: =IF($E193>0, $E193, $E192) -> 2500 | H205: 1822.5 | I205: 0.6701 | J205: =IF($E193>0, $E193, $E192) -> 2500 | K205: 1675.25 | L205: -147.25 | M205: -0.08079561043
A206: GENERAL SERVICE 50 to 4,999 kW SERVICE CLASSIFICATION | B206: ST_A | C206: =B32 -> 3 | D206: Sub-Total A (excluding pass through) | H206: =SUM(H200:H205) -> 8940.12 | K206: =SUM(K200:K205) -> 8878.3 | L206: -61.82 | M206: =IF((H206)=0,"",(L206/H206)) -> -0.006914895997
A207: GENERAL SERVICE 50 to 4,999 kW SERVICE CLASSIFICATION | D207: Line Losses on Cost of Power | F207: =IF((E192*12>=150000), 0, IF(E191="RPP",(F223*0.65+F224*0.17+F225*0.18),IF(E191="Non-RPP (Retailer)",F226,F227))) -> 0 | G207: =IF(F207=0, 0, $E192*E194-E192) -> 0 | H207: =G207*F207 -> 0 | I207: =IF((E192*12>=150000), 0, IF(E191="RPP",(I223*0.65+I224*0.17+I225*0.18),IF(E191="Non-RPP (Retailer)",I226,I227))) -> 0 | J207: =IF(I207=0, 0, E192*E195-E192) -> 0 | K207: =J207*I207 -> 0 | L207: =K207-H207 -> 0 | M207: =IF(ISERROR(L207/H207), "", L207/H207) -> 
A208: GENERAL SERVICE 50 to 4,999 kW SERVICE CLASSIFICATION | D208: Total Deferral/Variance Account Rate Riders | F208: 0 | G208: =IF($E193>0, $E193, $E192) -> 2500 | H208: 0 | I208: 0 | J208: =IF($E193>0, $E193, $E192) -> 2500 | K208: 0 | L208: 0
A209: GENERAL SERVICE 50 to 4,999 kW SERVICE CLASSIFICATION | D209: CBR Class B Rate Riders | F209: 0 | G209: =IF($E193>0, $E193, $E192) -> 2500 | H209: =G209*F209 -> 0 | I209: 0 | J209: =IF($E193>0, $E193, $E192) -> 2500 | K209: =J209*I209 -> 0 | L209: 0
A210: GENERAL SERVICE 50 to 4,999 kW SERVICE CLASSIFICATION | D210: GA Rate Riders | F210: 0 | G210: =E192 -> 1095000 | H210: =G210*F210 -> 0 | I210: 0 | J210: =E192 -> 1095000 | K210: 0 | L210: 0
A211: GENERAL SERVICE 50 to 4,999 kW SERVICE CLASSIFICATION | D211: Low Voltage Service Charge | F211: 0 | G211: =IF($E193>0, $E193, $E192) -> 2500 | H211: 0 | J211: =IF($E193>0, $E193, $E192) -> 2500 | K211: 0 | L211: 0
A212: GENERAL SERVICE 50 to 4,999 kW SERVICE CLASSIFICATION | D212: Smart Meter Entity Charge (if applicable) | F212: =IF(OR(ISNUMBER(SEARCH("RESIDENTIAL", E190))=TRUE, ISNUMBER(SEARCH("GENERAL SERVICE LESS THAN 50", E190))=TRUE), SME, 0) -> 0 | G212: 1 | H212: =G212*F212 -> 0 | I212: =IF(OR(ISNUMBER(SEARCH("RESIDENTIAL", E190))=TRUE, ISNUMBER(SEARCH("GENERAL SERVICE LESS THAN 50", E190))=TRUE), SME, 0) -> 0 | J212: 1 | K212: =J212*I212 -> 0 | L212: 0 | M212: =IF(ISERROR(L212/H212), "", L212/H212) -> 
A213: GENERAL SERVICE 50 to 4,999 kW SERVICE CLASSIFICATION | D213: Additional Fixed Rate Riders | F213: 0 | G213: 1 | H213: 0 | I213: 0 | J213: 1 | K213: =J213*I213 -> 0 | L213: =K213-H213 -> 0 | M213: =IF(ISERROR(L213/H213), "", L213/H213) -> 
A214: GENERAL SERVICE 50 to 4,999 kW SERVICE CLASSIFICATION | D214: Additional Volumetric Rate Riders | G214: =IF($E193>0, $E193, $E192) -> 2500 | H214: =G214*F214 -> 0 | I214: 0 | J214: =IF($E193>0, $E193, $E192) -> 2500 | K214: =J214*I214 -> 0 | L214: 0 | M214: =IF(ISERROR(L214/H214), "", L214/H214) -> 
A215: GENERAL SERVICE 50 to 4,999 kW SERVICE CLASSIFICATION | B215: ST_B | C215: =B32 -> 3 | D215: Sub-Total B - Distribution (includes Sub-Total A) | H215: =SUM(H206:H214) -> 8940.12 | K215: =SUM(K206:K214) -> 8878.3 | L215: -61.82 | M215: =IF((H215)=0,"",(L215/H215)) -> -0.006914895997
A216: GENERAL SERVICE 50 to 4,999 kW SERVICE CLASSIFICATION | D216: RTSR - Network | F216: 2.9458 | G216: =IF($E193>0, $E193, $E192*$E194) -> 2500 | H216: =G216*F216 -> 7364.5 | I216: 3.0533 | J216: =IF($E193>0, $E193, $E192*$E195) -> 2500 | K216: =J216*I216 -> 7633.25 | L216: 268.75 | M216: =IF(ISERROR(L216/H216), "", L216/H216) -> 0.03649263358 | N216: =IF(ISERROR(ABS(M216)), "", IF(ABS(M216)>=4%, "In the manager's summary, discuss the reasoning for the change in RTSR rates", "")) -> 
A217: GENERAL SERVICE 50 to 4,999 kW SERVICE CLASSIFICATION | D217: RTSR - Connection and/or Line and Transformation Connection | F217: 2.8026 | G217: =IF($E193>0, $E193, $E192*$E194) -> 2500 | H217: =G217*F217 -> 7006.5 | I217: 2.928 | J217: =IF($E193>0, $E193, $E192*$E195) -> 2500 | K217: =J217*I217 -> 7320 | L217: 313.5 | M217: =IF(ISERROR(L217/H217), "", L217/H217) -> 0.04474416613 | N217: =IF(ISERROR(ABS(M217)), "", IF(ABS(M217)>=4%, "In the manager's summary, discuss the reasoning for the change in RTSR rates", "")) -> In the manager's summary, discuss the reasoning for the change in RTSR rates
A218: GENERAL SERVICE 50 to 4,999 kW SERVICE CLASSIFICATION | B218: ST_C | C218: =B32 -> 3 | D218: Sub-Total C - Delivery (including Sub-Total B) | H218: =SUM(H215:H217) -> 23311.12 | K218: =SUM(K215:K217) -> 23831.55 | L218: 520.43 | M218: =IF((H218)=0,"",(L218/H218)) -> 0.02232539663
A219: GENERAL SERVICE 50 to 4,999 kW SERVICE CLASSIFICATION | D219: Wholesale Market Service Charge (WMSC) | F219: =IF(AND('[2]1. Information Sheet'!$F$26:$H$26>='[2]17. Regulatory Charges'!$D$14,'[2]1. Information Sheet'!$F$26:$H$26<'[2]17. Regulatory Charges'!$E$14),'[2]17. Regulatory Charges'!$D$15+'[2]17. Regulatory Charges'!$D$16,'[2]17. Regulatory Charges'!$E$15+'[2]17. Regulatory Charges'!$E$16) -> 0.0034 | G219: =E192*E194 -> 1129492.5 | H219: =G219*F219 -> 3840.2745 | I219: ='[2]17. Regulatory Charges'!$E$15+'[2]17. Regulatory Charges'!$E$16 -> 0.0034 | J219: =E192*E195 -> 1129492.5 | K219: =J219*I219 -> 3840.2745 | L219: 0 | M219: =IF(ISERROR(L219/H219), "", L219/H219) -> 0
A220: GENERAL SERVICE 50 to 4,999 kW SERVICE CLASSIFICATION | D220: Rural and Remote Rate Protection (RRRP) | F220: =IF(AND('[2]1. Information Sheet'!$F$26:$H$26>='[2]17. Regulatory Charges'!$D$14,'[2]1. Information Sheet'!$F$26:$H$26<'[2]17. Regulatory Charges'!$D$14),'[2]17. Regulatory Charges'!$D$17,'[2]17. Regulatory Charges'!$E$17) -> 0.0005 | G220: =E192*E194 -> 1129492.5 | H220: 564.74625 | I220: ='[2]17. Regulatory Charges'!$E$17 -> 0.0005 | J220: =E192*E195 -> 1129492.5 | K220: 564.74625 | L220: 0 | M220: 0
A221: GENERAL SERVICE 50 to 4,999 kW SERVICE CLASSIFICATION | D221: Standard Supply Service Charge | F221: =IF(AND('[2]1. Information Sheet'!$F$26:$H$26>='[2]17. Regulatory Charges'!$D$14,'[2]1. Information Sheet'!$F$26:$H$26<'[2]17. Regulatory Charges'!$D$14),'[2]17. Regulatory Charges'!$D$18,'[2]17. Regulatory Charges'!$E$18) -> 0.25 | G221: 1 | H221: 0.25 | I221: ='[2]17. Regulatory Charges'!$E$18 -> 0.25 | J221: 1 | K221: 0.25 | L221: 0 | M221: 0
A222: GENERAL SERVICE 50 to 4,999 kW SERVICE CLASSIFICATION | D222: Ontario Electricity Support Program (OESP)
A223: GENERAL SERVICE 50 to 4,999 kW SERVICE CLASSIFICATION | B223: RPP | D223: TOU - Off Peak | F223: =OffPeak -> 0.065 | G223: =IF(AND(E192*12>=150000),0.65*E192*E194,0.65*E192) -> 734170.125 | H223: 47721.05813 | I223: =OffPeak -> 0.065 | J223: =IF(AND(E192*12>=150000),0.65*E192*E195,0.65*E192) -> 734170.125 | K223: 47721.05813 | L223: =K223-H223 -> 0 | M223: 0
A224: GENERAL SERVICE 50 to 4,999 kW SERVICE CLASSIFICATION | B224: RPP | D224: TOU - Mid Peak | F224: =MidPeak -> 0.094 | G224: =IF(AND(E192*12>=150000),0.17*E192*E194,0.17*E192) -> 192013.725 | H224: 18049.29015 | I224: =MidPeak -> 0.094 | J224: =IF(AND(E192*12>=150000),0.17*E192*E195,0.17*E192) -> 192013.725 | K224: 18049.29015 | L224: =K224-H224 -> 0 | M224: 0
A225: GENERAL SERVICE 50 to 4,999 kW SERVICE CLASSIFICATION | B225: RPP | D225: TOU - On Peak | F225: =OnPeak -> 0.134 | G225: =IF(AND(E192*12>=150000),0.18*E192*E194,0.18*E192) -> 203308.65 | H225: 27243.3591 | I225: =OnPeak -> 0.134 | J225: =IF(AND(E192*12>=150000),0.18*E192*E195,0.18*E192) -> 203308.65 | K225: 27243.3591 | L225: =K225-H225 -> 0 | M225: 0
A226: GENERAL SERVICE 50 to 4,999 kW SERVICE CLASSIFICATION | B226: Non-RPP (Retailer) | D226: Non-RPP Retailer Avg. Price | F226: 0.1101 | G226: =IF(AND(E192*12>=150000),E192*E194,E192) -> 1129492.5 | H226: =G226*F226 -> 124357.1243 | I226: =F226 -> 0.1101 | J226: =IF(AND(E192*12>=150000),E192*E195,E192) -> 1129492.5 | K226: =J226*I226 -> 124357.1243 | L226: =K226-H226 -> 0 | M226: 0
A227: GENERAL SERVICE 50 to 4,999 kW SERVICE CLASSIFICATION | B227: Non-RPP (Other) | D227: Average IESO Wholesale Market Price | F227: 0.1101 | G227: =IF(AND(E192*12>=150000),E192*E194,E192) -> 1129492.5 | H227: =G227*F227 -> 124357.1243 | I227: =F227 -> 0.1101 | J227: =IF(AND(E192*12>=150000),E192*E195,E192) -> 1129492.5 | K227: =J227*I227 -> 124357.1243 | L227: =K227-H227 -> 0 | M227: 0
A228: GENERAL SERVICE 50 to 4,999 kW SERVICE CLASSIFICATION
A229: GENERAL SERVICE 50 to 4,999 kW SERVICE CLASSIFICATION | B229: RPP | D229: Total Bill on TOU (before Taxes) | H229: =SUM(H219:H225,H218) -> 120730.0981 | K229: =SUM(K219:K225,K218) -> 121250.5281 | L229: =K229-H229 -> 520.43 | M229: =IF((H229)=0,"",(L229/H229)) -> 0.004310689779
A230: GENERAL SERVICE 50 to 4,999 kW SERVICE CLASSIFICATION | B230: RPP | D230: HST | F230: 0.13 | H230: =H229*F230 -> 15694.91276 | I230: 0.13 | K230: =K229*I230 -> 15762.56866 | L230: =K230-H230 -> 67.6559 | M230: =IF((H230)=0,"",(L230/H230)) -> 0.004310689779
A231: GENERAL SERVICE 50 to 4,999 kW SERVICE CLASSIFICATION | B231: RPP | D231: 8% Rebate | F231: 0.08 | H231: 0 | I231: 0.08 | K231: 0 | L231: =K231-H231 -> 0
A232: GENERAL SERVICE 50 to 4,999 kW SERVICE CLASSIFICATION | B232: RPP_TOTAL | D232: Total Bill on TOU | H232: =H229+H230+H231 -> 136425.0109 | K232: =K229+K230+K231 -> 137013.0968 | L232: =K232-H232 -> 588.0859 | M232: =IF((H232)=0,"",(L232/H232)) -> 0.004310689779
A233: GENERAL SERVICE 50 to 4,999 kW SERVICE CLASSIFICATION | B233: RPP
A234: GENERAL SERVICE 50 to 4,999 kW SERVICE CLASSIFICATION | B234: Non-RPP (Retailer) | D234: Total Bill on Non-RPP Avg. Price | H234: =SUM(H226,H219:H222,H218) -> 152073.515 | K234: =SUM(K226,K219:K222,K218) -> 152593.945 | L234: =K234-H234 -> 520.43 | M234: =IF((H234)=0,"",(L234/H234)) -> 0.003422226415
... 380 more rows
